bitfinex/quotes_ETHUSD_20251126
["timestamp","ask_amount","ask_price","bid_price","bid_amount"]
[1764115650447,0.002,2962.1,2962.0,0.9457]
[1764115651743,0.002,2962.1,2962.0,5.04739134]
[1764115653248,0.002,2962.4,2962.1,0.72559411]
[1764115653480,0.002,2962.4,2962.3,0.6783]
[1764115653686,0.002,2962.4,2962.3,4.05405532]
[1764115653868,0.002,2962.4,2962.3,4.52125532]
[1764115655353,0.002,2962.4,2962.3,5.24684943]
[1764115657882,0.002,2962.4,2962.0,0.1998]
[1764115658597,0.002,2962.4,2962.0,0.667]
[1764115658769,0.407504,2962.4,2962.0,0.667]
[1764115659090,0.407504,2962.4,2961.3,0.72559411]
[1764115659316,0.880304,2962.4,2961.6,0.4672]
[1764115659898,0.880304,2962.4,2961.8,0.72559411]
[1764115660918,0.407504,2962.4,2961.8,0.72559411]
[1764115661077,0.002,2962.4,2962.3,0.6783]
[1764115661271,0.002,2962.4,2962.3,1.1455]
[1764115662000,0.002,2962.4,2962.3,4.52125532]
[1764115662704,0.002,2962.4,2962.3,5.24684943]
[1764115663314,0.002,2962.4,2962.3,5.28060698]
[1764115663527,0.002,2962.4,2962.3,5.24684943]
[1764115664814,0.002,2962.4,2962.3,1.20409411]
[1764115665017,0.002,2962.4,2962.0,0.667]
[1764115665202,0.002,2962.4,2962.1,0.72559411]
[1764115665401,0.002,2962.4,2962.3,0.4785]
[1764115665830,0.002,2962.4,2962.3,0.9457]
[1764115666124,0.002,2962.4,2962.3,5.08080698]
[1764115666318,0.002,2962.4,2962.3,5.04704943]
[1764115668665,0.002,2962.4,2962.3,4.57984943]
[1764115669227,0.002,2962.4,2962.3,5.04704943]
[1764115673162,0.002,2962.4,2962.3,4.57984943]
[1764115674478,0.002,2962.4,2962.3,3.85425532]
[1764115674875,0.002,2962.4,2962.3,3.37575532]
[1764115676206,0.002,2962.4,2962.3,5.06154943]
[1764115679111,0.002,2962.4,2962.3,4.58694943]
[1764115679682,0.002,2962.4,2962.3,5.06154943]
[1764115681326,0.002,2962.4,2962.3,4.58694943]
[1764115683230,0.002,2962.4,2962.3,5.04314943]
[1764115683915,0.002,2962.4,2962.3,4.58694943]
[1764115684629,0.2827,2962.4,2962.3,3.37575532]
[1764115685294,0.2827,2962.4,2962.1,6.7519665]
[1764115685688,0.0047,2962.2,2962.0,0.001]
[1764115685889,0.4751,2962.1,2962.0,0.001]
[1764115686496,0.215,2962.3,2962.0,3.85869723]
[1764115686698,0.2807,2962.1,2962.0,0.001]
[1764115687096,0.002,2962.4,2962.0,3.85869723]
[1764115687299,0.217,2962.4,2962.0,0.001]
[1764115687490,0.4751,2962.1,2962.0,0.001]
[1764115687803,0.405504,2962.3,2962.0,6.75319446]
[1764115688117,0.405504,2962.3,2962.0,3.85869723]
[1764115688320,0.405504,2962.3,2962.0,3.37709723]
[1764115688796,0.686204,2962.1,2962.0,0.001]
[1764115688996,1.00099136,2962.1,2962.0,0.001]
[1764115689203,2.19373926,2962.1,2962.0,0.001]
[1764115689921,5.56972251,2962.1,2962.0,0.001]
[1764115690596,2.19373926,2962.1,2962.0,0.001]
[1764115691622,5.56972251,2962.1,2962.0,0.001]
[1764115692002,2.19373926,2962.1,2962.0,0.001]
[1764115692196,5.56972251,2962.1,2962.0,0.001]
[1764115692398,4.94457461,2962.1,2962.0,0.001]
[1764115692594,5.66811752,2962.1,2962.0,0.001]
[1764115694340,4.94457461,2962.1,2962.0,0.001]
[1764115695449,1.56859136,2962.1,2962.0,0.001]
[1764115696117,1.46859136,2962.1,2962.0,0.001]
[1764115696322,1.68359136,2962.1,2962.0,0.001]
[1764115696517,5.19491618,2962.1,2962.0,0.001]
[1764115696827,5.05957461,2962.1,2962.0,0.001]
[1764115697428,1.46859136,2962.1,2962.0,0.001]
[1764115697608,1.68359136,2962.1,2962.0,0.001]
[1764115698533,1.00099136,2962.1,2962.0,0.001]
[1764115698717,1.68359136,2962.1,2962.0,0.001]
[1764115700927,1.68242802,2962.1,2962.0,0.001]
[1764115701827,1.21482802,2962.1,2962.0,0.001]
[1764115702670,1.68242802,2962.1,2962.0,0.001]
[1764115704561,0.215,2962.1,2962.0,0.9467]
[1764115706763,0.215,2962.1,2962.0,4.32279723]
[1764115707869,0.215,2962.1,2962.0,0.9467]
[1764115708376,0.215,2962.1,2962.0,0.4926]
[1764115709076,4.74688725,2962.1,2962.0,0.001]
[1764115709263,11.43064719,2962.1,2962.0,0.001]
[1764115709467,12.15360691,2962.1,2962.0,0.001]
[1764115709967,12.25360691,2962.1,2962.0,0.001]
[1764115710478,12.97920102,2962.1,2962.0,0.001]
[1764115711578,9.50321777,2962.1,2962.0,0.001]
[1764115711754,12.97920102,2962.1,2962.0,0.001]
[1764115712480,13.88381741,2962.1,2962.0,0.001]
[1764115712783,12.97920102,2962.1,2962.0,0.001]
[1764115712946,13.78289709,2962.1,2962.0,0.001]
[1764115713349,13.88289709,2962.1,2962.0,0.001]
[1764115714397,13.88289709,2962.1,2961.8,0.001]
[1764115714398,0.505504,2961.9,2961.8,0.001]
[1764115714550,1.64385805,2961.9,2961.8,0.001]
[1764115714756,2.95811777,2961.9,2961.8,0.001]
[1764115715174,4.1643732,2961.9,2961.8,0.001]
[1764115715488,7.54058441,2961.9,2961.8,0.001]
[1764115715791,0.505504,2961.6,2961.5,0.001]
[1764115715993,1.03916394,2961.6,2961.5,0.001]
[1764115716166,2.97901777,2961.6,2961.5,0.001]
[1764115717582,6.35557098,2961.6,2961.5,0.001]
[1764115717784,7.04356951,2961.6,2961.5,0.001]
[1764115718080,7.25856951,2961.6,2961.5,0.001]
[1764115719482,6.49094416,2961.6,2961.5,0.001]
[1764115720454,7.0207172,2961.6,2961.5,0.001]
[1764115721101,2.11226988,2961.6,2961.5,0.001]
[1764115721278,12.7994172,2961.6,2961.5,0.001]
[1764115721473,13.2907172,2961.6,2961.5,0.001]
[1764115721662,13.3907172,2961.6,2961.5,0.001]
[1764115721863,12.7994172,2961.6,2961.5,0.001]
[1764115722307,9.91416399,2961.6,2961.5,0.001]
[1764115722482,13.2907172,2961.6,2961.5,0.001]
[1764115722867,9.91416399,2961.6,2961.5,0.001]
[1764115723110,13.2907172,2961.6,2961.5,0.001]
[1764115723304,12.76094416,2961.6,2961.5,0.001]
[1764115724390,12.05464416,2961.6,2961.5,0.001]
[1764115724588,12.26964416,2961.6,2961.5,0.001]
[1764115724907,12.76094416,2961.6,2961.5,0.001]
[1764115726311,12.86094416,2961.6,2961.5,0.001]
[1764115727291,13.26340419,2961.6,2961.5,0.001]
[1764115729120,7.54209284,2961.6,2961.5,0.4926]
[1764115729327,6.89875994,2961.6,2961.5,0.4926]
[1764115729683,7.30426394,2961.6,2961.5,0.001]
[1764115729885,7.30426394,2961.6,2961.5,0.4926]
[1764115731422,10.68081715,2961.6,2961.5,0.4926]
[1764115731825,7.30426394,2961.6,2961.5,0.4926]
[1764115732123,0.93426394,2961.6,2961.5,0.9795]
[1764115735625,0.71926394,2961.6,2961.5,0.9795]
[1764115735829,0.002,2961.7,2961.5,0.9795]
[1764115736026,0.002,2961.7,2961.6,0.9698]
[1764115736634,0.217,2961.7,2961.6,0.9698]
[1764115736816,0.002,2961.7,2961.6,4.34635321]
[1764115736991,0.002,2961.7,2961.6,5.07194732]
[1764115738301,0.002,2961.7,2961.6,5.02194732]
[1764115741721,0.002,2962.0,2961.6,11.77505374]
[1764115742026,0.215,2962.2,2961.9,0.4534]
[1764115742226,0.215,2962.2,2962.1,0.6409]
[1764115742394,0.215,2962.2,2962.1,4.74247736]
[1764115742593,0.215,2962.2,2962.1,5.19357736]
[1764115744399,0.002,2962.3,2962.1,8.56956061]
[1764115744600,0.002,2962.3,2962.2,0.9045]
[1764115746445,0.002,2962.3,2962.2,1.63009411]
[1764115746608,0.002,2962.3,2962.2,0.4534]
[1764115747199,0.2888,2962.3,2961.9,4.10174827]
[1764115747413,0.002,2962.3,2962.2,0.4534]
[1764115748043,0.2888,2962.3,2961.6,0.4511]
[1764115748706,0.405504,2962.2,2961.6,0.4511]
[1764115748934,0.215,2962.1,2961.6,3.82763608]
[1764115749544,0.215,2962.1,2961.7,0.4511]
[1764115750734,0.405504,2961.7,2961.5,0.001]
[1764115750920,0.407304,2961.7,2961.5,0.001]
[1764115751120,0.0018,2961.7,2961.5,0.001]
[1764115752504,0.215,2961.6,2961.5,0.001]
[1764115754355,0.215,2961.6,2961.5,0.4544]
[1764115756261,0.215,2961.6,2961.5,0.9055]
[1764115756464,0.215,2961.6,2961.5,4.28216722]
[1764115758216,1.097804,2961.6,2961.5,0.001]
[1764115758523,1.6759205,2961.6,2961.5,0.001]
[1764115759260,0.9344205,2961.6,2961.5,0.001]
[1764115759554,1.6759205,2961.6,2961.5,0.001]
[1764115759928,1.4096205,2961.6,2961.5,0.001]
[1764115760136,0.9344205,2961.6,2961.5,0.4544]
[1764115760520,0.405504,2961.6,2961.5,0.9168]
[1764115760766,0.215,2961.6,2961.5,0.9168]
[1764115761761,0.215,2961.6,2961.5,0.001]
[1764115761762,0.4942,2961.6,2961.5,0.001]
[1764115761966,0.80824939,2961.6,2961.5,0.001]
[1764115763171,0.4942,2961.6,2961.5,0.001]
[1764115763340,0.80831612,2961.6,2961.5,0.001]
[1764115764034,1.21382012,2961.6,2961.5,0.001]
[1764115764238,5.05637333,2961.6,2961.5,0.001]
[1764115766240,5.15637333,2961.6,2961.5,0.001]
[1764115767067,12.25196744,2961.6,2961.5,0.001]
[1764115767268,12.97542647,2961.6,2961.5,0.001]
[1764115768064,12.15196744,2961.6,2961.5,0.001]
[1764115771097,12.87497149,2961.6,2961.5,0.001]
[1764115771960,12.97497149,2961.6,2961.5,0.001]
[1764115773990,12.87497149,2961.6,2961.5,0.001]
[1764115774300,12.97497149,2961.6,2961.5,0.001]
[1764115774663,13.87683567,2961.6,2961.5,0.001]
[1764115776383,13.11035795,2961.6,2961.5,0.001]
[1764115776900,13.63389438,2961.6,2961.5,0.001]
[1764115777104,13.11035795,2961.6,2961.5,0.001]
[1764115777398,14.31489438,2961.6,2961.5,0.001]
[1764115779171,1.13109811,2961.5,2961.4,0.001]
[1764115779376,2.74081828,2961.5,2961.4,0.001]
[1764115779670,2.87620474,2961.5,2961.4,0.001]
[1764115779906,6.25287196,2961.5,2961.4,0.001]
[1764115780417,13.03914944,2961.5,2961.4,0.001]
[1764115780599,12.1345855,2961.5,2961.4,0.001]
[1764115780907,12.7024855,2961.5,2961.4,0.001]
[1764115781303,13.60704944,2961.5,2961.4,0.001]
[1764115781608,8.75321828,2961.5,2961.4,0.487]
[1764115781919,12.1298855,2961.5,2961.4,0.487]
[1764115782288,11.40429139,2961.5,2961.4,0.487]
[1764115782593,12.24949139,2961.5,2961.4,0.001]
[1764115786108,0.1047,2961.3,2960.8,0.00083654]
[1764115786304,0.405504,2961.1,2960.8,0.00083654]
[1764115786506,0.405504,2960.9,2960.8,0.00083654]
[1764115786812,1.13242012,2960.9,2960.7,0.001]
[1764115786988,1.23109811,2960.7,2960.6,0.001]
[1764115787192,3.06937226,2960.7,2960.6,0.001]
[1764115787507,2.65739356,2960.7,2960.6,0.001]
[1764115787908,6.03497318,2960.7,2960.6,0.001]
[1764115788075,6.50287318,2960.7,2960.6,0.001]
[1764115788279,6.03497318,2960.7,2960.6,0.001]
[1764115788482,6.9394547,2960.7,2960.6,0.001]
[1764115788897,6.21386059,2960.7,2960.6,0.001]
[1764115789109,5.30937907,2960.7,2960.6,0.001]
[1764115789778,5.03627907,2960.7,2960.6,0.487]
[1764115791283,5.03627907,2960.7,2960.6,0.001]
[1764115791597,5.41397907,2960.7,2960.6,0.001]
[1764115791797,5.03627907,2960.7,2960.6,0.4621]
[1764115792612,5.03627907,2960.7,2960.6,0.001]
[1764115793588,5.31587907,2960.7,2960.6,0.001]
[1764115794085,5.31587907,2960.7,2960.6,0.4621]
[1764115794086,5.03627907,2960.7,2960.6,0.4621]
[1764115794713,1.65869945,2960.7,2960.6,0.4621]
[1764115795115,5.03627907,2960.7,2960.6,0.4621]
[1764115796100,5.03627907,2960.7,2960.6,0.001]
[1764115796303,5.25787907,2960.7,2960.6,0.001]
[1764115798804,5.03627907,2960.7,2960.6,0.4621]
[1764115799131,1.65869945,2960.7,2960.6,0.4621]
[1764115800432,5.35197907,2960.7,2960.6,0.001]
[1764115801237,5.25197907,2960.7,2960.6,0.001]
[1764115801534,5.25197907,2960.7,2960.6,0.9181]
[1764115801535,1.03819545,2960.7,2960.6,0.9181]
[1764115801738,0.405504,2960.6,2958.4,0.1925]
[1764115801943,0.405504,2959.2,2958.5,0.4638]
[1764115802115,0.405504,2959.0,2958.5,0.4638]
[1764115802644,0.405504,2959.0,2958.9,0.4533]
[1764115802805,0.71934176,2959.0,2958.9,0.4533]
[1764115803005,0.71934176,2959.0,2958.9,0.9171]
[1764115803405,0.71934176,2959.0,2958.9,0.4533]
[1764115803609,0.215,2959.0,2958.9,0.9171]
[1764115804121,0.405504,2959.4,2958.9,0.9171]
[1764115804319,0.52843569,2959.3,2959.0,0.4638]
[1764115804507,0.31343569,2959.2,2959.0,0.4638]
[1764115804940,0.31343569,2959.2,2959.1,0.6458]
[1764115805115,0.215,2959.2,2959.1,1.1096]
[1764115805635,0.215,2959.2,2958.8,0.4638]
[1764115805851,3.5942917,2959.2,2958.5,0.001]
[1764115806056,0.31329427,2959.1,2958.5,0.4648]
[1764115806352,0.215,2959.2,2958.5,0.4648]
[1764115806735,3.59432394,2959.2,2958.5,0.4648]
[1764115807055,0.31316904,2959.1,2958.5,0.4648]
[1764115807541,0.215,2959.2,2958.5,3.84485125]
[1764115807746,0.215,2959.2,2958.6,0.4638]
[1764115808459,0.405504,2959.1,2958.6,0.4638]
[1764115808663,0.1,2959.0,2958.5,0.001]
[1764115809121,0.405504,2959.1,2958.6,0.4638]
[1764115810430,0.215,2959.0,2958.6,0.4638]
[1764115811764,0.215,2959.0,2958.5,0.001]
[1764115811967,0.1929,2958.6,2958.5,0.001]
[1764115812149,0.215,2958.6,2958.5,0.4648]
[1764115812322,0.215,2958.6,2958.5,0.001]
[1764115812519,0.215,2958.6,2958.5,0.4543]
[1764115812752,0.215,2958.6,2958.5,0.001]
[1764115812954,0.215,2958.6,2958.5,0.4543]
[1764115813156,0.215,2958.6,2958.5,0.9181]
[1764115813329,0.215,2958.6,2958.5,4.29819126]
[1764115813927,0.53014008,2959.1,2958.5,4.29819126]
[1764115814124,0.53014008,2959.1,2959.0,0.4533]
[1764115814369,0.74514008,2959.1,2958.6,0.4638]
[1764115814667,0.74514008,2959.1,2958.6,3.84369922]
[1764115814961,0.53014008,2959.1,2959.0,0.4533]
[1764115815166,0.74514008,2959.1,2959.0,0.4533]
[1764115815664,0.53014008,2959.1,2959.0,0.4533]
[1764115815829,0.74514008,2959.1,2959.0,0.9171]
[1764115816160,0.215,2959.1,2959.0,0.9171]
[1764115816944,0.215,2959.1,2958.6,0.4638]
[1764115817261,0.215,2959.1,2958.7,0.4638]
[1764115818966,0.405504,2959.5,2959.0,0.4533]
[1764115819170,6.90008558,2959.8,2959.4,0.6458]
[1764115819333,6.90008558,2959.8,2959.7,0.4533]
[1764115819533,6.585,2959.8,2959.7,0.4533]
[1764115819743,6.585,2959.8,2959.7,0.9171]
[1764115820229,6.585,2959.8,2959.7,0.4533]
[1764115820432,6.89835295,2959.8,2959.7,0.4533]
[1764115820678,6.37,2959.8,2959.7,0.9438]
[1764115820832,6.37,2960.5,2959.7,0.9438]
[1764115821032,0.52839754,2960.4,2960.2,0.4693]
[1764115821264,0.31339754,2960.3,2960.2,0.4693]
[1764115821934,0.31339754,2960.3,2959.9,0.4905]
[1764115825674,0.31339754,2960.3,2960.2,0.4693]
[1764115826045,0.52839754,2960.3,2959.9,0.4905]
[1764115826245,0.31339754,2960.2,2959.9,0.4905]
[1764115826747,0.215,2960.3,2960.1,0.4693]
[1764115826971,0.31352653,2960.2,2960.1,0.4693]
[1764115827168,0.52852653,2960.2,2960.1,0.6851]
[1764115827370,0.52852653,2960.2,2960.1,1.1544]
[1764115829365,0.215,2960.2,2960.1,4.53264764]
[1764115829573,0.215,2960.2,2960.1,4.53266424]
[1764115830570,0.002,2960.6,2960.1,7.91092848]
[1764115830782,0.002,2960.6,2960.5,0.4693]
[1764115830990,0.217,2960.6,2960.5,0.9598]
[1764115833064,0.217,2960.6,2960.5,4.3376078]
[1764115834080,0.002,2960.6,2960.5,4.3376078]
[1764115834268,0.002,2960.6,2960.5,5.06320191]
[1764115837512,0.002,2960.6,2960.5,5.09697998]
[1764115838071,0.002,2960.9,2960.6,0.72559411]
[1764115838271,0.002,2961.0,2960.8,0.4693]
[1764115838600,0.002,2961.0,2960.9,0.4693]
[1764115838982,0.002,2961.0,2960.9,0.9598]
[1764115839707,0.002,2961.2,2960.9,0.9598]
[1764115839870,0.002,2961.2,2961.1,4.72931747]
[1764115840380,0.002,2961.2,2961.1,5.21981747]
[1764115841477,0.002,2961.2,2961.1,5.2535887]
[1764115843006,0.002,2961.2,2961.1,5.21981747]
[1764115844921,0.002,2961.2,2961.1,5.2535887]
[1764115846013,0.002,2961.2,2961.1,5.21981747]
[1764115846195,0.002,2961.2,2961.1,5.2535887]
[1764115846397,0.002,2961.2,2961.1,5.21981747]
[1764115848288,0.002,2961.2,2961.1,5.2535887]
[1764115848685,0.002,2961.2,2961.1,5.21981747]
[1764115849193,0.002,2961.2,2961.1,5.2535887]
[1764115850818,0.002,2961.2,2961.1,5.21981747]
[1764115850987,0.002,2961.2,2961.1,5.2535887]
[1764115856515,0.002,2961.2,2961.1,5.21981747]
[1764115857094,0.002,2961.2,2961.1,5.2535887]
[1764115857298,0.002,2961.2,2961.1,5.21981747]
[1764115857607,0.002,2961.2,2961.1,5.2535887]
[1764115860533,0.002,2961.2,2961.1,4.57201747]
[1764115860736,0.7427,2961.2,2960.6,6.75538742]
[1764115861037,0.002,2961.2,2961.1,0.4555]
[1764115861332,0.7427,2961.2,2961.0,0.001]
[1764115861509,0.002,2961.2,2961.0,0.001]
[1764115862333,0.31511742,2961.2,2961.0,0.001]
[1764115862544,0.002,2961.2,2961.1,0.9153]
[1764115862859,0.4665,2961.1,2961.0,0.001]
[1764115863060,0.7429,2961.1,2961.0,0.001]
[1764115863559,1.05644832,2961.1,2961.0,0.001]
[1764115864867,1.05644832,2961.1,2961.0,3.37823741]
[1764115865540,1.05644832,2961.1,2961.0,0.001]
[1764115866062,0.31354832,2961.1,2961.0,0.001]
[1764115866259,0.78004832,2961.1,2961.0,0.001]
[1764115867542,1.05644832,2961.1,2961.0,0.001]
[1764115868566,0.78004832,2961.1,2961.0,0.001]
[1764115868732,0.99504832,2961.1,2961.0,0.001]
[1764115869732,0.52854832,2961.1,2961.0,0.4565]
[1764115870031,0.31354832,2961.1,2961.0,0.4565]
[1764115870460,0.31554832,2961.2,2961.0,0.4565]
[1764115870857,1.05644832,2961.1,2961.0,0.001]
[1764115871794,0.77814832,2961.1,2961.0,0.001]
[1764115872144,1.05644832,2961.1,2961.0,0.001]
[1764115874660,1.46195232,2961.1,2961.0,0.001]
[1764115874860,11.93073989,2961.1,2961.0,0.001]
[1764115875066,8.55361653,2961.1,2961.0,0.001]
[1764115875363,12.14573989,2961.1,2961.0,0.001]
[1764115876483,12.14573989,2961.1,2960.7,0.001]
[1764115876484,0.405504,2961.0,2960.7,0.001]
[1764115876694,0.591304,2960.8,2960.7,0.001]
[1764115876907,0.90485232,2960.8,2960.7,0.001]
[1764115877228,2.11778163,2960.8,2960.7,0.001]
[1764115877353,6.22084128,2960.8,2960.7,0.001]
[1764115878256,5.49981197,2960.8,2960.7,0.001]
[1764115879495,2.12234643,2960.8,2960.7,0.001]
[1764115879657,5.49981197,2960.8,2960.7,0.001]
[1764115883068,5.59870938,2960.8,2960.7,0.001]
[1764115883890,5.49870938,2960.8,2960.7,0.001]
[1764115884452,5.59870938,2960.8,2960.7,0.001]
[1764115885090,5.49870938,2960.8,2960.7,0.001]
[1764115886786,1.20514573,2960.8,2960.7,0.001]
[1764115889686,1.20572498,2960.8,2960.7,0.001]
[1764115890888,4.58319052,2960.8,2960.7,0.001]
[1764115891068,4.68319052,2960.8,2960.7,0.001]
[1764115891269,5.30878463,2960.8,2960.7,0.001]
[1764115891575,6.13010334,2960.8,2960.7,0.001]
[1764115891770,5.40450923,2960.8,2960.7,0.001]
[1764115891986,5.30450923,2960.8,2960.7,0.001]
[1764115894608,0.71382498,2960.8,2960.7,0.001]
[1764115895011,1.92408248,2960.8,2960.7,0.001]
[1764115895180,5.30154802,2960.8,2960.7,0.001]
[1764115895508,5.08654802,2960.8,2960.7,0.001]
[1764115895718,5.30154802,2960.8,2960.7,0.001]
[1764115898710,5.30154802,2960.8,2960.6,3e-05]
[1764115899015,5.1634621,2960.7,2960.6,3e-05]
[1764115899842,1.78588248,2960.7,2960.6,3e-05]
[1764115900051,0.31302498,2960.7,2960.6,0.48913]
[1764115900229,0.52802498,2960.7,2960.6,0.96643]
[1764115901246,0.31302498,2960.7,2960.6,0.96643]
[1764115901431,0.52802498,2960.7,2960.6,0.96643]
[1764115901831,0.52802498,2960.7,2960.6,4.34412371]
[1764115902035,0.52802498,2960.7,2960.6,0.96643]
[1764115902344,0.52802498,2960.7,2960.6,4.34412371]
[1764115902544,0.31302498,2960.7,2960.6,4.34412371]
[1764115902749,0.215,2960.7,2960.6,4.34412371]
[1764115903047,0.52802498,2960.7,2960.6,4.34412371]
[1764115903247,0.52802498,2960.7,2960.6,0.96643]
[1764115903842,0.52802498,2960.7,2960.6,4.34412371]
[1764115905056,0.31302498,2960.7,2960.6,4.34412371]
[1764115905439,0.215,2960.8,2960.6,7.72181742]
[1764115905645,0.215,2960.8,2960.7,0.9664]
[1764115905839,0.52911389,2960.8,2960.7,0.9664]
[1764115906350,0.215,2960.8,2960.7,0.9664]
[1764115906950,0.215,2960.8,2960.7,4.34397962]
[1764115907942,0.002,2961.0,2960.7,7.72155924]
[1764115908270,0.215,2960.9,2960.8,0.4773]
[1764115908755,0.215,2960.9,2960.8,0.9664]
[1764115909352,0.215,2960.9,2960.8,4.34386554]
[1764115910234,0.215,2960.9,2960.8,0.9664]
[1764115910870,0.4808,2960.9,2960.6,3e-05]
[1764115911167,0.215,2960.9,2960.8,0.4814]
[1764115911339,0.52871195,2960.9,2960.8,0.4814]
[1764115911842,0.52871195,2960.9,2960.8,0.9755]
[1764115912250,0.52871195,2960.9,2960.8,4.35296554]
[1764115912659,1.02831195,2960.9,2960.6,3e-05]
[1764115912858,0.7146,2960.9,2960.6,0.49413]
[1764115913157,0.215,2960.9,2960.8,0.4814]
[1764115913662,0.215,2960.9,2960.8,3.85886554]
[1764115913873,0.52874893,2960.9,2960.8,0.9755]
[1764115914077,0.215,2960.9,2960.8,0.9755]
[1764115914275,0.52875804,2960.9,2960.8,0.9755]
[1764115915393,0.52875804,2960.9,2960.8,0.4814]
[1764115915571,0.79155804,2960.9,2960.6,3e-05]
[1764115915779,0.4778,2960.9,2960.6,3e-05]
[1764115916305,0.4778,2960.9,2960.6,3.37763039]
[1764115916687,0.4778,2960.9,2960.6,3e-05]
[1764115917060,0.4778,2960.9,2960.6,0.49413]
[1764115917264,0.4778,2960.9,2960.6,3.8718077]
[1764115918096,0.80560549,2960.8,2960.6,3e-05]
[1764115918282,0.57150549,2960.7,2960.6,3e-05]
[1764115918998,1.06100549,2960.7,2960.6,3e-05]
[1764115919994,0.57150549,2960.7,2960.6,3e-05]
[1764115920199,0.31380549,2960.7,2960.6,0.4814]
[1764115920504,0.215,2960.7,2960.6,0.9755]
[1764115921601,0.215,2960.7,2960.6,4.35319371]
[1764115923802,0.215,2960.7,2960.6,3.85909371]
[1764115924001,0.215,2960.7,2960.6,4.33839371]
[1764115926200,0.52916561,2960.7,2960.6,4.33839371]
[1764115926405,0.215,2960.7,2960.6,4.33839371]
[1764115926604,0.002,2960.9,2960.6,7.74986435]
[1764115926796,0.53117288,2960.9,2960.8,0.4559]
[1764115927195,0.53117288,2960.9,2960.8,0.9352]
[1764115927575,0.53117288,2960.9,2960.8,4.31266554]
[1764115931188,0.31617288,2960.9,2960.8,3.83336554]
[1764115931391,0.31617288,2960.9,2960.8,4.31266554]
[1764115931590,0.002,2960.9,2960.8,4.31266554]
[1764115942755,0.9371,2960.9,2960.5,3.37879105]
[1764115942923,0.31918937,2960.8,2960.5,3.37879105]
[1764115943123,0.4684,2960.6,2960.5,0.001]
[1764115943425,0.6834,2960.6,2960.5,0.001]
[1764115944559,0.6834,2960.6,2960.5,3.3788078]
[1764115944769,0.215,2960.8,2960.5,7.7025156]
[1764115944925,0.215,2960.8,2960.7,0.48]
[1764115945445,0.5294048,2960.8,2960.7,0.9459]
[1764115946959,0.5294048,2960.8,2960.7,0.48]
[1764115947157,0.5294048,2960.8,2960.7,3.85757962]
[1764115947353,0.5294048,2960.8,2960.7,0.48]
[1764115948124,0.8117048,2960.8,2960.6,3.37759951]
[1764115948460,0.215,2960.8,2960.7,0.9459]
[1764115948648,0.002,2960.9,2960.7,0.9459]
[1764115948649,0.217,2960.9,2960.7,4.32347252]
[1764115948841,0.217,2960.9,2960.8,0.48]
[1764115949039,0.53145809,2960.9,2960.8,0.48]
[1764115950256,0.31645809,2960.9,2960.8,0.48]
[1764115950571,0.002,2960.9,2960.8,0.48]
[1764115950752,0.31645809,2960.9,2960.8,4.32336554]
[1764115951952,0.002,2960.9,2960.8,3.85746554]
[1764115952357,0.2843,2960.9,2960.8,0.48]
[1764115952574,0.2843,2960.9,2960.7,3.37752262]
[1764115954785,0.2843,2960.9,2960.7,6.75510224]
[1764115955078,0.002,2960.9,2960.7,6.75510224]
[1764115955283,0.002,2960.9,2960.8,0.48]
[1764115956281,0.31658231,2960.9,2960.8,0.48]
[1764115956449,0.59888231,2960.9,2960.5,0.4669]
[1764115956650,0.31462015,2960.8,2960.5,0.4669]
[1764115956851,0.31462015,2960.8,2960.5,0.001]
[1764115957463,0.31462015,2960.8,2960.5,0.4669]
[1764115958287,0.31462015,2960.8,2960.5,0.001]
[1764115958851,0.31462015,2960.8,2960.7,0.48]
[1764115959490,0.31462015,2960.8,2960.7,4.32347962]
[1764115959646,0.002,2960.9,2960.7,4.32347962]
[1764115959847,0.31656363,2960.9,2960.7,3.37757962]
[1764115960074,0.78296363,2960.8,2960.5,0.001]
[1764115960409,0.4666,2960.6,2960.5,3.37880193]
[1764115961507,0.4666,2960.6,2960.5,0.001]
[1764115963405,0.6816,2960.6,2960.5,0.001]
[1764115963619,1.28499098,2960.6,2960.5,0.001]
[1764115968223,0.99609098,2960.6,2960.5,0.001]
[1764115968950,0.31449098,2960.6,2960.5,0.481]
[1764115969099,0.002,2960.9,2960.5,0.9469]
[1764115969300,0.002,2960.9,2960.8,0.48]
[1764115969728,0.002,2960.9,2960.8,0.9459]
[1764115970703,0.002,2960.9,2960.8,4.32336554]
[1764115975658,0.002,2960.9,2960.8,5.04895965]
[1764115980435,0.002,2960.9,2960.8,4.58305965]
[1764115981154,0.002,2960.9,2960.8,5.05925965]
[1764115983577,0.002,2960.9,2960.8,4.58305965]
[1764115983777,0.002,2960.9,2960.8,5.05925965]
[1764115984077,0.002,2960.9,2960.8,5.0930343]
[1764115984583,0.002,2960.9,2960.8,5.05925965]
[1764115985482,0.002,2960.9,2960.8,5.0930343]
[1764115990366,0.002,2960.9,2960.8,5.05925965]
[1764115990563,0.2377,2960.9,2960.8,4.10305965]
[1764115992408,0.4978,2960.9,2960.8,4.10305965]
[1764115993772,0.002,2960.9,2960.8,4.10305965]
[1764115993975,0.002,2960.9,2960.8,4.58675965]
[1764115995408,0.4949,2960.9,2960.8,4.10305965]
[1764115995915,0.002,2960.9,2960.8,4.58675965]
[1764115996472,0.4949,2960.9,2960.8,4.10305965]
[1764115996721,0.7014,2960.9,2960.8,3.37746554]
[1764115997081,1.0968,2960.9,2960.5,0.001]